[Event "Titled Tuesday Blitz November 01 Late 2022"]
[White "Ivic, Velimir"]
[Black "Yuan, Qingyu"]
[WhiteFideId "950122"]
[BlackFideId "8609772"]
[WhiteElo "2625"]
[BlackElo "2359"]
[Result "1-0"]
[Round "11"]
[TimeControl "180+1"]
[Date "2022.11.01"]
[WhiteClock "0:00:10"]
[BlackClock "0:00:01"]

1. e4 {[%clk 0:03:00]}  c6 {[%clk 0:03:00]} 2. Nc3 {[%clk 0:03:00]}  d5 {[%clk 0:03:01]} 3. Nf3 {[%clk 0:03:00]}  dxe4 {[%clk 0:03:01]} 4. Nxe4 {[%clk 0:03:01]}  Nf6 {[%clk 0:03:02]} 5. Qe2 {[%clk 0:03:02]}  Nxe4 {[%clk 0:03:02]} 6. Qxe4 {[%clk 0:03:03]}  Nd7 {[%clk 0:03:03]} 7. d4 {[%clk 0:03:04]}  Nf6 {[%clk 0:03:03]} 8. Qd3 {[%clk 0:03:04]}  g6 {[%clk 0:03:00]} 9. Be2 {[%clk 0:03:05]}  Bf5 {[%clk 0:02:59]} 10. Qb3 {[%clk 0:03:06]}  Qb6 {[%clk 0:02:58]} 11. Ne5 {[%clk 0:03:05]}  Qxb3 {[%clk 0:02:57]} 12. axb3 {[%clk 0:03:06]}  Bxc2 {[%clk 0:02:52]} 13. Bc4 {[%clk 0:03:07]}  e6 {[%clk 0:02:46]} 14. Bg5 {[%clk 0:03:07]}  Ne4 {[%clk 0:02:33]} 15. Be3 {[%clk 0:03:07]}  Bb4+ {[%clk 0:02:26]} 16. Ke2 {[%clk 0:03:07]}  Nd6 {[%clk 0:02:20]} 17. Rhc1 {[%clk 0:03:03]}  Nxc4 {[%clk 0:01:32]} 18. bxc4 {[%clk 0:03:02]}  Bf5 {[%clk 0:01:19]} 19. c5 {[%clk 0:02:33]}  a5 {[%clk 0:01:09]} 20. Ra4 {[%clk 0:02:26]}  f6 {[%clk 0:00:58]} 21. Nc4 {[%clk 0:02:25]}  Ke7 {[%clk 0:00:58]} 22. Bd2 {[%clk 0:02:20]}  Rhd8 {[%clk 0:00:44]} 23. Bc3 {[%clk 0:02:18]}  Be4 {[%clk 0:00:38]} 24. Nb6 {[%clk 0:02:12]}  Ra6 {[%clk 0:00:32]} 25. f3 {[%clk 0:02:11]}  Bd5 {[%clk 0:00:31]} 26. Rca1 {[%clk 0:02:10]}  Bb3 {[%clk 0:00:29]} 27. Bxb4 {[%clk 0:02:01]}  Bxa4 {[%clk 0:00:28]} 28. Bc3 {[%clk 0:02:01]}  Bb5+ {[%clk 0:00:27]} 29. Ke3 {[%clk 0:02:02]}  a4 {[%clk 0:00:27]} 30. g4 {[%clk 0:02:00]}  Rh8 {[%clk 0:00:24]} 31. h4 {[%clk 0:01:56]}  h5 {[%clk 0:00:24]} 32. g5 {[%clk 0:01:53]}  Rf8 {[%clk 0:00:19]} 33. gxf6+ {[%clk 0:01:49]}  Rxf6 {[%clk 0:00:18]} 34. d5 {[%clk 0:01:49]}  exd5 {[%clk 0:00:14]} 35. Bxf6+ {[%clk 0:01:49]}  Kxf6 {[%clk 0:00:15]} 36. Kd4 {[%clk 0:01:15]}  Ra5 {[%clk 0:00:15]} 37. Kc3 {[%clk 0:01:06]}  Ba6 {[%clk 0:00:14]} 38. b4 {[%clk 0:01:05]}  Rb5 {[%clk 0:00:11]} 39. Rxa4 {[%clk 0:01:04]}  Kf5 {[%clk 0:00:09]} 40. Kd4 {[%clk 0:00:56]}  Kf4 {[%clk 0:00:07]} 41. Nd7 {[%clk 0:00:56]}  Kxf3 {[%clk 0:00:06]} 42. Ne5+ {[%clk 0:00:57]}  Kg3 {[%clk 0:00:06]} 43. Nxg6 {[%clk 0:00:57]}  Kg4 {[%clk 0:00:05]} 44. Ke5 {[%clk 0:00:56]}  Kg3 {[%clk 0:00:03]} 45. Ne7 {[%clk 0:00:46]}  Kg4 {[%clk 0:00:03]} 46. Nf5 {[%clk 0:00:44]}  b6 {[%clk 0:00:02]} 47. Rxa6 {[%clk 0:00:38]}  bxc5 {[%clk 0:00:02]} 48. bxc5 {[%clk 0:00:39]}  Rxc5 {[%clk 0:00:03]} 49. Nd4 {[%clk 0:00:18]}  Kxh4 {[%clk 0:00:03]} 50. Ra1 {[%clk 0:00:19]}  Kg3 {[%clk 0:00:03]} 51. Rg1+ {[%clk 0:00:16]}  Kf2 {[%clk 0:00:03]} 52. Rh1 {[%clk 0:00:17]}  Rc4 {[%clk 0:00:03]} 53. Rh2+ {[%clk 0:00:17]}  Kg3 {[%clk 0:00:03]} 54. Rxh5 {[%clk 0:00:17]}  c5 {[%clk 0:00:02]} 55. Nf5+ {[%clk 0:00:18]}  Kf3 {[%clk 0:00:02]} 56. Rh3+ {[%clk 0:00:19]}  Kg2 {[%clk 0:00:02]} 57. Ra3 {[%clk 0:00:18]}  Rc1 {[%clk 0:00:02]} 58. Ne3+ {[%clk 0:00:17]}  Kf2 {[%clk 0:00:02]} 59. Nxd5 {[%clk 0:00:18]}  c4 {[%clk 0:00:02]} 60. Kf4 {[%clk 0:00:18]}  Rb1 {[%clk 0:00:02]} 61. Nc3 {[%clk 0:00:18]}  Rb3 {[%clk 0:00:02]} 62. Ne4+ {[%clk 0:00:18]}  Ke2 {[%clk 0:00:02]} 63. Ra2+ {[%clk 0:00:19]}  Kd1 {[%clk 0:00:02]} 64. Rd2+ {[%clk 0:00:16]}  Kc1 {[%clk 0:00:02]} 65. Rh2 {[%clk 0:00:09]}  c3 {[%clk 0:00:02]} 66. Rh1+ {[%clk 0:00:10]}  Kb2 {[%clk 0:00:02]} 67. Nc5 {[%clk 0:00:09]}  c2 {[%clk 0:00:02]} 68. Nxb3 {[%clk 0:00:08]}  Kxb3 {[%clk 0:00:03]} 69. Ke3 {[%clk 0:00:09]}  Kb2 {[%clk 0:00:03]} 70. Kd2 {[%clk 0:00:09]}  Kb3 {[%clk 0:00:01]} 71. Rc1 {[%clk 0:00:10]} 1-0


[Site "https://www.chess.com"]

[Event "Titled Tuesday Blitz November 01 Late 2022"]
[White "Jobava, Baadur"]
[Black "Firouzja, Alireza"]
[WhiteFideId "13601520"]
[BlackFideId "12573981"]
[WhiteElo "2582"]
[BlackElo "2903"]
[Result "0-1"]
[Round "11"]
[TimeControl "180+1"]
[Date "2022.11.01"]
[WhiteClock "0:00:01"]
[BlackClock "0:00:36"]

1. e4 {[%clk 0:03:00]}  c5 {[%clk 0:02:59]} 2. c3 {[%clk 0:03:00]}  d5 {[%clk 0:02:55]} 3. exd5 {[%clk 0:03:01]}  Qxd5 {[%clk 0:02:55]} 4. Nf3 {[%clk 0:03:02]}  Nc6 {[%clk 0:02:52]} 5. Na3 {[%clk 0:03:02]}  Bg4 {[%clk 0:02:44]} 6. Be2 {[%clk 0:02:54]}  e6 {[%clk 0:02:38]} 7. h3 {[%clk 0:02:55]}  Bh5 {[%clk 0:02:37]} 8. O-O {[%clk 0:02:55]}  Nf6 {[%clk 0:02:38]} 9. d4 {[%clk 0:02:53]}  cxd4 {[%clk 0:02:10]} 10. Nb5 {[%clk 0:02:53]}  O-O-O {[%clk 0:02:10]} 11. Nbxd4 {[%clk 0:01:52]}  Bc5 {[%clk 0:02:06]} 12. Be3 {[%clk 0:01:52]}  e5 {[%clk 0:01:56]} 13. Nxc6 {[%clk 0:01:35]}  Qxc6 {[%clk 0:01:56]} 14. Qc1 {[%clk 0:01:22]}  Rhe8 {[%clk 0:01:37]} 15. Re1 {[%clk 0:01:15]}  Nd5 {[%clk 0:01:30]} 16. Bxc5 {[%clk 0:01:09]}  Qxc5 {[%clk 0:01:31]} 17. g3 {[%clk 0:00:43]}  f6 {[%clk 0:01:17]} 18. Nd2 {[%clk 0:00:33]}  Bxe2 {[%clk 0:01:10]} 19. Rxe2 {[%clk 0:00:34]}  Kb8 {[%clk 0:01:11]} 20. Qc2 {[%clk 0:00:33]}  g6 {[%clk 0:01:02]} 21. Nb3 {[%clk 0:00:30]}  Qc8 {[%clk 0:01:00]} 22. h4 {[%clk 0:00:28]}  Qg4 {[%clk 0:00:57]} 23. Qe4 {[%clk 0:00:21]}  Nf4 {[%clk 0:00:49]} 24. Ree1 {[%clk 0:00:19]}  f5 {[%clk 0:00:45]} 25. Qb4 {[%clk 0:00:11]}  Rd3 {[%clk 0:00:36]} 26. Re3 {[%clk 0:00:01]}  Rxe3 {[%clk 0:00:35]} 27. Qd6+ {[%clk 0:00:01]}  Ka8 {[%clk 0:00:35]} 28. fxe3 {[%clk 0:00:01]}  Qxg3+ {[%clk 0:00:36]} 0-1


[Site "https://www.chess.com"]

[Event "Titled Tuesday Blitz November 01 Late 2022"]
[White "Kanyamarala, Tarun"]
[Black "Barria Zuniga, Daniel"]
[WhiteFideId "45004714"]
[BlackFideId "3400816"]
[WhiteElo "2307"]
[BlackElo "2414"]
[Result "0-1"]
[Round "11"]
[TimeControl "180+1"]
[Date "2022.11.02"]
[WhiteClock "0:00:58"]
[BlackClock "0:00:43"]

1. e4 {[%clk 0:03:00]}  g6 {[%clk 0:02:53]} 2. d4 {[%clk 0:02:59]}  Bg7 {[%clk 0:02:52]} 3. Nf3 {[%clk 0:02:58]}  c5 {[%clk 0:02:52]} 4. dxc5 {[%clk 0:02:57]}  Nf6 {[%clk 0:02:51]} 5. Nc3 {[%clk 0:02:41]}  Qa5 {[%clk 0:02:49]} 6. Bd3 {[%clk 0:02:38]}  Qxc5 {[%clk 0:02:47]} 7. O-O {[%clk 0:02:37]}  O-O {[%clk 0:02:46]} 8. Be3 {[%clk 0:02:33]}  Qa5 {[%clk 0:02:45]} 9. a3 {[%clk 0:02:32]}  d6 {[%clk 0:02:45]} 10. h3 {[%clk 0:02:28]}  Nbd7 {[%clk 0:02:43]} 11. b4 {[%clk 0:02:27]}  Qd8 {[%clk 0:02:42]} 12. Rb1 {[%clk 0:02:24]}  a6 {[%clk 0:02:32]} 13. Nd4 {[%clk 0:02:10]}  e6 {[%clk 0:02:27]} 14. Nce2 {[%clk 0:02:06]}  Qc7 {[%clk 0:02:17]} 15. c4 {[%clk 0:02:04]}  Ne5 {[%clk 0:02:17]} 16. Rc1 {[%clk 0:02:04]}  b6 {[%clk 0:02:16]} 17. Nc3 {[%clk 0:01:49]}  Bb7 {[%clk 0:02:10]} 18. f3 {[%clk 0:01:48]}  Rac8 {[%clk 0:02:04]} 19. Be2 {[%clk 0:01:47]}  Qb8 {[%clk 0:01:58]} 20. Qb3 {[%clk 0:01:46]}  Ba8 {[%clk 0:01:54]} 21. Rfd1 {[%clk 0:01:45]}  Rc7 {[%clk 0:01:51]} 22. f4 {[%clk 0:01:39]}  Ned7 {[%clk 0:01:50]} 23. Bf3 {[%clk 0:01:39]}  Rfc8 {[%clk 0:01:48]} 24. b5 {[%clk 0:01:28]}  a5 {[%clk 0:01:31]} 25. Nc6 {[%clk 0:01:27]}  Bxc6 {[%clk 0:01:26]} 26. bxc6 {[%clk 0:01:27]}  Rxc6 {[%clk 0:01:26]} 27. e5 {[%clk 0:01:26]}  dxe5 {[%clk 0:01:20]} 28. Bxc6 {[%clk 0:01:26]}  Rxc6 {[%clk 0:01:18]} 29. fxe5 {[%clk 0:01:17]}  Qxe5 {[%clk 0:01:12]} 30. Nb5 {[%clk 0:01:15]}  Bf8 {[%clk 0:00:58]} 31. Bd4 {[%clk 0:01:11]}  Bc5 {[%clk 0:00:57]} 32. Qf3 {[%clk 0:01:02]}  Bxd4+ {[%clk 0:00:47]} 33. Nxd4 {[%clk 0:01:00]}  Rd6 {[%clk 0:00:44]} 34. Nc6 {[%clk 0:00:58]}  Qc5+ {[%clk 0:00:43]} 0-1


[Site "https://www.chess.com"]

[Event "Titled Tuesday Blitz November 01 Late 2022"]
[White "Kleiman, Jake"]
[Black "Yanchenko, Roman"]
[WhiteFideId "2020041"]
[BlackFideId "4137329"]
[WhiteElo "2647"]
[BlackElo "2514"]
[Result "1-0"]
[Round "11"]
[TimeControl "180+1"]
[Date "2022.11.01"]
[WhiteClock "0:01:03"]
[BlackClock "0:00:39"]

1. e4 {[%clk 0:03:00]}  e6 {[%clk 0:02:59]} 2. d3 {[%clk 0:03:00]}  d5 {[%clk 0:03:00]} 3. Nd2 {[%clk 0:03:01]}  c5 {[%clk 0:03:00]} 4. Ngf3 {[%clk 0:03:02]}  Nc6 {[%clk 0:03:00]} 5. g3 {[%clk 0:03:02]}  Nf6 {[%clk 0:03:00]} 6. Bg2 {[%clk 0:03:03]}  g6 {[%clk 0:03:00]} 7. O-O {[%clk 0:03:04]}  Bg7 {[%clk 0:03:01]} 8. exd5 {[%clk 0:03:04]}  Nxd5 {[%clk 0:02:58]} 9. Nb3 {[%clk 0:03:05]}  b6 {[%clk 0:02:57]} 10. d4 {[%clk 0:03:04]}  c4 {[%clk 0:02:55]} 11. Nbd2 {[%clk 0:03:05]}  c3 {[%clk 0:02:55]} 12. Ne4 {[%clk 0:03:05]}  cxb2 {[%clk 0:02:53]} 13. Bxb2 {[%clk 0:03:04]}  O-O {[%clk 0:02:52]} 14. c4 {[%clk 0:03:02]}  Nf6 {[%clk 0:02:51]} 15. Nxf6+ {[%clk 0:02:58]}  Bxf6 {[%clk 0:02:52]} 16. Ne5 {[%clk 0:02:58]}  Nxd4 {[%clk 0:02:20]} 17. Qxd4 {[%clk 0:02:47]}  Rb8 {[%clk 0:01:56]} 18. Qf4 {[%clk 0:02:23]}  g5 {[%clk 0:01:38]} 19. Qe3 {[%clk 0:02:18]}  Qc7 {[%clk 0:01:29]} 20. Rad1 {[%clk 0:02:06]}  Bb7 {[%clk 0:01:13]} 21. Rd7 {[%clk 0:01:54]}  Qc8 {[%clk 0:01:13]} 22. Rfd1 {[%clk 0:01:43]}  Bxg2 {[%clk 0:01:09]} 23. Kxg2 {[%clk 0:01:43]}  h6 {[%clk 0:01:05]} 24. Qf3 {[%clk 0:01:39]}  Bg7 {[%clk 0:01:06]} 25. Rxf7 {[%clk 0:01:32]}  Qc5 {[%clk 0:00:47]} 26. Rxg7+ {[%clk 0:01:16]}  Kxg7 {[%clk 0:00:47]} 27. Nd7+ {[%clk 0:01:16]}  Kg8 {[%clk 0:00:47]} 28. Qxf8+ {[%clk 0:01:08]}  Qxf8 {[%clk 0:00:46]} 29. Nxf8 {[%clk 0:01:08]}  Rxf8 {[%clk 0:00:46]} 30. Rd7 {[%clk 0:01:07]}  Rc8 {[%clk 0:00:46]} 31. Rxa7 {[%clk 0:01:07]}  Rxc4 {[%clk 0:00:45]} 32. Bg7 {[%clk 0:01:04]}  Ra4 {[%clk 0:00:39]} 33. Rxa4 {[%clk 0:01:03]} 1-0


[Site "https://www.chess.com"]

[Event "Titled Tuesday Blitz November 01 Late 2022"]
[White "Kodinets, Konstantin L."]
[Black "Dzierzak, Radoslaw"]
[WhiteFideId "4122011"]
[BlackFideId "1161407"]
[WhiteElo "2447"]
[BlackElo "2111"]
[Result "1-0"]
[Round "11"]
[TimeControl "180+1"]
[Date "2022.11.02"]
[WhiteClock "0:02:30"]
[BlackClock "0:01:14"]

1. d4 {[%clk 0:02:59]}  Nf6 {[%clk 0:02:59]} 2. Nf3 {[%clk 0:03:00]}  e6 {[%clk 0:03:00]} 3. Bg5 {[%clk 0:02:59]}  c5 {[%clk 0:02:58]} 4. e3 {[%clk 0:02:59]}  cxd4 {[%clk 0:02:56]} 5. exd4 {[%clk 0:02:59]}  b6 {[%clk 0:02:56]} 6. Nbd2 {[%clk 0:02:56]}  Bb7 {[%clk 0:02:56]} 7. Bd3 {[%clk 0:02:56]}  h6 {[%clk 0:02:56]} 8. Bxf6 {[%clk 0:02:56]}  Qxf6 {[%clk 0:02:56]} 9. Qe2 {[%clk 0:02:55]}  d6 {[%clk 0:02:48]} 10. O-O-O {[%clk 0:02:52]}  Qd8 {[%clk 0:02:31]} 11. h4 {[%clk 0:02:47]}  Be7 {[%clk 0:02:30]} 12. Kb1 {[%clk 0:02:39]}  Nc6 {[%clk 0:02:26]} 13. g4 {[%clk 0:02:36]}  a6 {[%clk 0:02:12]} 14. c3 {[%clk 0:02:35]}  b5 {[%clk 0:02:05]} 15. g5 {[%clk 0:02:36]}  g6 {[%clk 0:01:47]} 16. h5 {[%clk 0:02:34]}  hxg5 {[%clk 0:01:33]} 17. hxg6 {[%clk 0:02:32]}  Rxh1 {[%clk 0:01:13]} 18. Rxh1 {[%clk 0:02:32]}  fxg6 {[%clk 0:01:14]} 19. Qxe6 {[%clk 0:02:30]} 1-0


[Site "https://www.chess.com"]

[Event "Titled Tuesday Blitz November 01 Late 2022"]
[White "Luxama, Jacques Muller"]
[Black "Estrada Nieto, Julian"]
[WhiteFideId "11900113"]
[BlackFideId "5101018"]
[WhiteElo "1931"]
[BlackElo "2252"]
[Result "0-1"]
[Round "11"]
[TimeControl "180+1"]
[Date "2022.11.02"]
[WhiteClock "0:00:01"]
[BlackClock "0:00:09"]

1. d4 {[%clk 0:02:59]}  d5 {[%clk 0:02:59]} 2. c4 {[%clk 0:02:58]}  dxc4 {[%clk 0:02:58]} 3. Nf3 {[%clk 0:02:54]}  Nf6 {[%clk 0:02:58]} 4. Qa4+ {[%clk 0:02:53]}  c6 {[%clk 0:02:57]} 5. Qxc4 {[%clk 0:02:52]}  Bf5 {[%clk 0:02:58]} 6. Nc3 {[%clk 0:02:50]}  Nbd7 {[%clk 0:02:55]} 7. Bf4 {[%clk 0:02:46]}  e6 {[%clk 0:02:54]} 8. e3 {[%clk 0:02:43]}  Qb6 {[%clk 0:02:54]} 9. Qb3 {[%clk 0:02:25]}  Bb4 {[%clk 0:02:50]} 10. Be2 {[%clk 0:02:22]}  Nd5 {[%clk 0:02:47]} 11. Rc1 {[%clk 0:02:04]}  Nxf4 {[%clk 0:02:47]} 12. exf4 {[%clk 0:02:03]}  Bd6 {[%clk 0:02:46]} 13. g3 {[%clk 0:02:00]}  Qxb3 {[%clk 0:02:43]} 14. axb3 {[%clk 0:02:00]}  h6 {[%clk 0:02:38]} 15. Kd2 {[%clk 0:01:50]}  Rd8 {[%clk 0:02:38]} 16. Bd3 {[%clk 0:01:49]}  Bxd3 {[%clk 0:02:27]} 17. Kxd3 {[%clk 0:01:48]}  Nf6 {[%clk 0:02:19]} 18. Kc2 {[%clk 0:01:41]}  Bc7 {[%clk 0:02:04]} 19. h3 {[%clk 0:01:39]}  Ke7 {[%clk 0:01:58]} 20. Rcd1 {[%clk 0:01:37]}  a6 {[%clk 0:01:56]} 21. Rhe1 {[%clk 0:01:36]}  Rhe8 {[%clk 0:01:52]} 22. f5 {[%clk 0:01:34]}  Kf8 {[%clk 0:01:47]} 23. fxe6 {[%clk 0:01:33]}  Rxe6 {[%clk 0:01:47]} 24. Rxe6 {[%clk 0:01:32]}  fxe6 {[%clk 0:01:48]} 25. Re1 {[%clk 0:01:25]}  Kf7 {[%clk 0:01:47]} 26. Ne5+ {[%clk 0:01:19]}  Bxe5 {[%clk 0:01:46]} 27. dxe5 {[%clk 0:01:20]}  Nd5 {[%clk 0:01:44]} 28. Ne4 {[%clk 0:01:17]}  Nb4+ {[%clk 0:01:36]} 29. Kc3 {[%clk 0:01:16]}  Nd5+ {[%clk 0:01:10]} 30. Kc4 {[%clk 0:01:13]}  b6 {[%clk 0:01:06]} 31. Nd6+ {[%clk 0:01:04]}  Ke7 {[%clk 0:01:06]} 32. Re4 {[%clk 0:00:58]}  Rf8 {[%clk 0:00:58]} 33. Rg4 {[%clk 0:00:52]}  g5 {[%clk 0:00:53]} 34. Ne4 {[%clk 0:00:45]}  Rf3 {[%clk 0:00:45]} 35. h4 {[%clk 0:00:44]}  a5 {[%clk 0:00:33]} 36. hxg5 {[%clk 0:00:40]}  hxg5 {[%clk 0:00:32]} 37. Rxg5 {[%clk 0:00:39]}  b5+ {[%clk 0:00:31]} 38. Kc5 {[%clk 0:00:33]}  Rxb3 {[%clk 0:00:30]} 39. Rg7+ {[%clk 0:00:29]}  Kf8 {[%clk 0:00:30]} 40. Ra7 {[%clk 0:00:27]}  Rxb2 {[%clk 0:00:25]} 41. Kxc6 {[%clk 0:00:27]}  Ne7+ {[%clk 0:00:15]} 42. Kd6 {[%clk 0:00:25]}  Nc8+ {[%clk 0:00:15]} 43. Kxe6 {[%clk 0:00:18]}  Nxa7 {[%clk 0:00:16]} 44. f4 {[%clk 0:00:16]}  a4 {[%clk 0:00:15]} 45. Nf6 {[%clk 0:00:13]}  a3 {[%clk 0:00:12]} 46. Nd7+ {[%clk 0:00:13]}  Ke8 {[%clk 0:00:13]} 47. f5 {[%clk 0:00:13]}  a2 {[%clk 0:00:12]} 48. f6 {[%clk 0:00:12]}  Rf2 {[%clk 0:00:12]} 49. Nc5 {[%clk 0:00:02]}  a1=Q {[%clk 0:00:11]} 50. Ne4 {[%clk 0:00:03]}  Rf1 {[%clk 0:00:09]} 51. Nd6+ {[%clk 0:00:02]}  Kd8 {[%clk 0:00:09]} 52. f7 {[%clk 0:00:01]}  Nc6 {[%clk 0:00:09]} 0-1


[Site "https://www.chess.com"]

[Event "Titled Tuesday Blitz November 01 Late 2022"]
[White "Maksimovic, Bojan"]
[Black "Aghasiyev, Kamal"]
[WhiteFideId "14408120"]
[BlackFideId "13402854"]
[WhiteElo "2447"]
[BlackElo "2341"]
[Result "1/2-1/2"]
[Round "11"]
[TimeControl "180+1"]
[Date "2022.11.01"]
[WhiteClock "0:00:03"]
[BlackClock "0:00:07"]

1. e4 {[%clk 0:03:00]}  e5 {[%clk 0:02:57]} 2. Nf3 {[%clk 0:02:59]}  Nc6 {[%clk 0:02:56]} 3. c3 {[%clk 0:03:00]}  d5 {[%clk 0:02:51]} 4. Qa4 {[%clk 0:02:59]}  f6 {[%clk 0:01:44]} 5. exd5 {[%clk 0:02:57]}  Qxd5 {[%clk 0:01:35]} 6. d4 {[%clk 0:02:57]}  Bd7 {[%clk 0:01:27]} 7. Qd1 {[%clk 0:01:53]}  O-O-O {[%clk 0:01:22]} 8. Be2 {[%clk 0:01:54]}  exd4 {[%clk 0:01:11]} 9. cxd4 {[%clk 0:01:53]}  Bg4 {[%clk 0:00:41]} 10. Nc3 {[%clk 0:01:51]}  Qd7 {[%clk 0:00:38]} 11. O-O {[%clk 0:01:50]}  Bxf3 {[%clk 0:00:37]} 12. Bxf3 {[%clk 0:01:51]}  Nxd4 {[%clk 0:00:38]} 13. Be3 {[%clk 0:01:47]}  Bc5 {[%clk 0:00:35]} 14. Bxd4 {[%clk 0:01:44]}  Qxd4 {[%clk 0:00:34]} 15. Qb3 {[%clk 0:01:42]}  Qb4 {[%clk 0:00:27]} 16. Qe6+ {[%clk 0:01:42]}  Kb8 {[%clk 0:00:27]} 17. Nd5 {[%clk 0:01:43]}  Qa4 {[%clk 0:00:19]} 18. Rac1 {[%clk 0:01:41]}  Bd6 {[%clk 0:00:18]} 19. b3 {[%clk 0:01:28]}  Qd7 {[%clk 0:00:18]} 20. Qe4 {[%clk 0:01:28]}  f5 {[%clk 0:00:16]} 21. Qc4 {[%clk 0:01:22]}  Nh6 {[%clk 0:00:15]} 22. Rfd1 {[%clk 0:01:20]}  Rhe8 {[%clk 0:00:14]} 23. h3 {[%clk 0:01:10]}  Nf7 {[%clk 0:00:15]} 24. Qc2 {[%clk 0:00:45]}  Ne5 {[%clk 0:00:14]} 25. Be2 {[%clk 0:00:46]}  g5 {[%clk 0:00:13]} 26. Bf1 {[%clk 0:00:46]}  f4 {[%clk 0:00:13]} 27. Nf6 {[%clk 0:00:47]}  Qf7 {[%clk 0:00:10]} 28. Nxe8 {[%clk 0:00:47]}  Rxe8 {[%clk 0:00:11]} 29. Re1 {[%clk 0:00:46]}  h5 {[%clk 0:00:09]} 30. Bc4 {[%clk 0:00:39]}  Qg7 {[%clk 0:00:09]} 31. Qf5 {[%clk 0:00:39]}  Rf8 {[%clk 0:00:08]} 32. Qe6 {[%clk 0:00:39]}  g4 {[%clk 0:00:08]} 33. h4 {[%clk 0:00:38]}  g3 {[%clk 0:00:06]} 34. f3 {[%clk 0:00:33]}  a6 {[%clk 0:00:04]} 35. Rcd1 {[%clk 0:00:32]}  Ka7 {[%clk 0:00:02]} 36. Rxd6 {[%clk 0:00:29]}  cxd6 {[%clk 0:00:02]} 37. Qxd6 {[%clk 0:00:30]}  Nxc4 {[%clk 0:00:01]} 38. bxc4 {[%clk 0:00:30]}  Qf6 {[%clk 0:00:01]} 39. c5 {[%clk 0:00:12]}  Qxd6 {[%clk 0:00:01]} 40. cxd6 {[%clk 0:00:13]}  Rd8 {[%clk 0:00:02]} 41. Rd1 {[%clk 0:00:14]}  Kb6 {[%clk 0:00:02]} 42. Kf1 {[%clk 0:00:14]}  Kc6 {[%clk 0:00:03]} 43. Rd4 {[%clk 0:00:15]}  Rxd6 {[%clk 0:00:04]} 44. Rxf4 {[%clk 0:00:15]}  Rd2 {[%clk 0:00:04]} 45. Rf6+ {[%clk 0:00:14]}  Kc5 {[%clk 0:00:04]} 46. Rf5+ {[%clk 0:00:15]}  Kd4 {[%clk 0:00:05]} 47. Rxh5 {[%clk 0:00:12]}  Rf2+ {[%clk 0:00:05]} 48. Ke1 {[%clk 0:00:08]}  Rxg2 {[%clk 0:00:06]} 49. a4 {[%clk 0:00:05]}  Ra2 {[%clk 0:00:05]} 50. Kf1 {[%clk 0:00:05]}  Ke3 {[%clk 0:00:05]} 51. Rf5 {[%clk 0:00:04]}  Rf2+ {[%clk 0:00:04]} 52. Kg1 {[%clk 0:00:04]}  Rh2 {[%clk 0:00:04]} 53. h5 {[%clk 0:00:04]}  b5 {[%clk 0:00:03]} 54. axb5 {[%clk 0:00:04]}  axb5 {[%clk 0:00:04]} 55. Rxb5 {[%clk 0:00:03]}  Kxf3 {[%clk 0:00:05]} 56. Rf5+ {[%clk 0:00:03]}  Kg4 {[%clk 0:00:05]} 57. Rb5 {[%clk 0:00:03]}  Rc2 {[%clk 0:00:05]} 58. h6 {[%clk 0:00:02]}  Kh3 {[%clk 0:00:05]} 59. Rb1 {[%clk 0:00:01]}  Rg2+ {[%clk 0:00:04]} 60. Kh1 {[%clk 0:00:01]}  Rh2+ {[%clk 0:00:05]} 61. Kg1 {[%clk 0:00:02]}  Kg4 {[%clk 0:00:06]} 62. Rb4+ {[%clk 0:00:03]}  Kf3 {[%clk 0:00:05]} 63. Rb3+ {[%clk 0:00:03]}  Kf4 {[%clk 0:00:06]} 64. Rb6 {[%clk 0:00:04]}  Kf3 {[%clk 0:00:05]} 65. Rf6+ {[%clk 0:00:04]}  Kg4 {[%clk 0:00:06]} 66. Rg6+ {[%clk 0:00:05]}  Kf3 {[%clk 0:00:06]} 67. Ra6 {[%clk 0:00:03]}  Rg2+ {[%clk 0:00:06]} 68. Kh1 {[%clk 0:00:03]}  Rh2+ {[%clk 0:00:06]} 69. Kg1 {[%clk 0:00:04]}  Rg2+ {[%clk 0:00:07]} 70. Kh1 {[%clk 0:00:02]}  Rh2+ {[%clk 0:00:07]} 71. Kg1 {[%clk 0:00:03]} 1/2-1/2


[Site "https://www.chess.com"]

[Event "Titled Tuesday Blitz November 01 Late 2022"]
[White "Manolache, Marius"]
[Black "Khripachenko, Alexander"]
[WhiteFideId "1201530"]
[BlackFideId "54184975"]
[WhiteElo "2364"]
[BlackElo "2201"]
[Result "1-0"]
[Round "11"]
[TimeControl "180+1"]
[Date "2022.11.01"]
[WhiteClock "0:01:11"]
[BlackClock "0:01:38"]

1. d4 {[%clk 0:03:00]}  d5 {[%clk 0:02:59]} 2. c4 {[%clk 0:03:00]}  e6 {[%clk 0:03:00]} 3. Nc3 {[%clk 0:02:59]}  Be7 {[%clk 0:03:01]} 4. Nf3 {[%clk 0:02:59]}  Nf6 {[%clk 0:02:59]} 5. Bf4 {[%clk 0:02:58]}  O-O {[%clk 0:03:00]} 6. e3 {[%clk 0:02:57]}  b6 {[%clk 0:03:00]} 7. Rc1 {[%clk 0:02:56]}  Bb7 {[%clk 0:02:59]} 8. cxd5 {[%clk 0:02:56]}  Nxd5 {[%clk 0:03:00]} 9. Nxd5 {[%clk 0:02:55]}  Qxd5 {[%clk 0:03:00]} 10. a3 {[%clk 0:02:53]}  Qa5+ {[%clk 0:02:46]} 11. Qd2 {[%clk 0:02:52]}  Qxd2+ {[%clk 0:02:46]} 12. Kxd2 {[%clk 0:02:48]}  c5 {[%clk 0:02:47]} 13. dxc5 {[%clk 0:02:44]}  bxc5 {[%clk 0:02:47]} 14. Bd3 {[%clk 0:02:32]}  Nd7 {[%clk 0:02:45]} 15. Ke2 {[%clk 0:02:30]}  Nb6 {[%clk 0:02:45]} 16. Rhd1 {[%clk 0:02:25]}  c4 {[%clk 0:02:44]} 17. Bb1 {[%clk 0:02:22]}  Nd5 {[%clk 0:02:43]} 18. Be5 {[%clk 0:02:21]}  f6 {[%clk 0:02:43]} 19. Bd4 {[%clk 0:02:17]}  e5 {[%clk 0:02:42]} 20. Bc3 {[%clk 0:02:17]}  Rfd8 {[%clk 0:02:39]} 21. Ba5 {[%clk 0:02:14]}  Rd7 {[%clk 0:02:36]} 22. Bf5 {[%clk 0:02:13]}  Rd6 {[%clk 0:02:33]} 23. Nd2 {[%clk 0:02:09]}  c3 {[%clk 0:02:20]} 24. Bxc3 {[%clk 0:02:07]}  Nxc3+ {[%clk 0:02:20]} 25. Rxc3 {[%clk 0:02:07]}  Ba6+ {[%clk 0:02:20]} 26. Ke1 {[%clk 0:02:07]}  Rad8 {[%clk 0:02:21]} 27. Bc2 {[%clk 0:02:06]}  Bf8 {[%clk 0:02:04]} 28. Ne4 {[%clk 0:01:46]}  Rxd1+ {[%clk 0:02:00]} 29. Bxd1 {[%clk 0:01:47]}  Rb8 {[%clk 0:01:59]} 30. b4 {[%clk 0:01:46]}  Bb7 {[%clk 0:01:55]} 31. Nc5 {[%clk 0:01:41]}  Bxg2 {[%clk 0:01:54]} 32. Bb3+ {[%clk 0:01:39]}  Kh8 {[%clk 0:01:52]} 33. Nd7 {[%clk 0:01:35]}  Rd8 {[%clk 0:01:52]} 34. Nxf8 {[%clk 0:01:34]}  Rxf8 {[%clk 0:01:52]} 35. Rc7 {[%clk 0:01:32]}  Ra8 {[%clk 0:01:52]} 36. b5 {[%clk 0:01:30]}  h5 {[%clk 0:01:51]} 37. a4 {[%clk 0:01:29]}  h4 {[%clk 0:01:51]} 38. Be6 {[%clk 0:01:25]}  Kh7 {[%clk 0:01:50]} 39. a5 {[%clk 0:01:23]}  Rb8 {[%clk 0:01:48]} 40. Bd7 {[%clk 0:01:23]}  Ra8 {[%clk 0:01:45]} 41. Ke2 {[%clk 0:01:19]}  Bd5 {[%clk 0:01:41]} 42. Kd3 {[%clk 0:01:15]}  Kg6 {[%clk 0:01:40]} 43. e4 {[%clk 0:01:14]}  Bb3 {[%clk 0:01:38]} 44. Bc6 {[%clk 0:01:11]}  Ba4 {[%clk 0:01:38]} 1-0


[Site "https://www.chess.com"]